bitfinex/quotes_ETHUSD_20241223
["timestamp","ask_amount","ask_price","bid_price","bid_amount"]
[1734980990341,0.0948096,3334.7,3334.6,2.99886]
[1734980990702,0.0948096,3334.7,3333.9,2.99949]
[1734980990902,0.0948096,3334.7,3334.3,2.99908]
[1734980991308,0.0948096,3334.7,3334.5,2.99894]
[1734980991812,0.0948096,3334.7,3333.8,0.788]
[1734980991998,0.0948096,3334.7,3333.9,0.15273263]
[1734980992203,0.0948096,3334.7,3334.3,2.99907]
[1734980992563,0.0948096,3334.7,3333.9,3.15216263]
[1734980993099,0.0948096,3334.7,3334.3,2.99904]
[1734980994236,0.0948096,3334.7,3334.4,2.99903]
[1734980994640,0.0948096,3334.7,3334.2,2.9992]
[1734980996441,0.0948096,3334.7,3334.3,0.58740417]
[1734980996943,0.0948096,3334.7,3334.3,3.58651417]
[1734980997105,0.0948096,3334.7,3333.8,3.78752]
[1734980997307,0.0948096,3334.7,3334.0,2.99939]
[1734980997728,0.0948096,3334.7,3333.8,0.788]
[1734980998546,0.0948096,3334.7,3334.1,0.59449871]
[1734980998840,0.0948096,3334.7,3333.8,0.788]
[1734980999048,0.0948096,3334.7,3334.6,2.99886]
[1734980999219,0.0948096,3334.7,3334.6,4.395057]
[1734980999624,9.6e-06,3334.8,3334.7,2.99877]
[1734981000230,9.6e-06,3335.3,3335.2,2.99832]
[1734981000490,3.11888805,3336.3,3335.6,0.7547]
[1734981000640,3.11888805,3336.3,3335.7,2.99787]
[1734981000960,3.11888805,3336.3,3336.2,2.99742]
[1734981001322,0.02998877,3337.3,3335.8,0.375257]
[1734981001530,3.09127018,3337.4,3336.4,2.99718]
[1734981002071,3.0,3337.3,3336.4,2.99718]
[1734981002386,3.0,3337.3,3335.6,0.7547]
[1734981002387,0.55,3336.9,3335.6,0.7547]
[1734981002605,0.55,3336.9,3335.2,0.7644]
[1734981002606,3.55,3336.5,3335.2,0.7644]
[1734981002879,0.55,3336.1,3335.2,0.7644]
[1734981003101,0.02998877,3336.0,3334.8,2.99861]
[1734981003241,0.55,3335.7,3334.6,1.21424092]
[1734981003441,3.06128141,3334.9,3334.1,1.21424092]
[1734981003695,3.06128141,3334.5,3334.1,1.21424092]
[1734981003838,0.02998877,3334.4,3334.1,1.21424092]
[1734981004203,0.55,3335.2,3333.5,0.7644]
[1734981004366,3.06128141,3335.3,3334.5,2.99891]
[1734981004669,0.55,3335.6,3334.7,2.99869]
[1734981005003,0.55,3335.4,3334.1,2.99929]
[1734981005205,0.55,3334.8,3333.8,2.99954]
[1734981005502,2.99894,3334.6,3333.6,0.59806375]
[1734981005645,0.57998877,3334.5,3333.2,3.00007]
[1734981005981,0.02998877,3334.5,3333.5,2.99976]
[1734981006283,0.02998877,3334.5,3333.6,2.99968]
[1734981006484,0.55,3334.8,3333.9,2.99948]
[1734981006655,0.57998877,3334.8,3333.9,2.99948]
[1734981006983,0.57998877,3334.8,3333.5,0.599983]
[1734981007184,3.06128141,3335.3,3333.6,2.99976]
[1734981007483,0.02998877,3335.1,3333.7,3.3596443]
[1734981008068,0.02998877,3335.1,3334.2,2.99921]
[1734981008269,0.02998877,3335.1,3333.3,0.60882397]
[1734981008455,0.55,3334.8,3333.3,0.60882397]
[1734981008663,3.09127018,3334.9,3333.4,2.99994]
[1734981008843,3.86523884,3334.9,3334.1,2.99928]
[1734981009043,0.80395743,3334.9,3334.1,2.99928]
[1734981009487,0.80395743,3334.9,3334.2,2.99918]
[1734981009672,3.67221896,3335.2,3334.2,2.99918]
[1734981009673,0.57998877,3335.1,3334.2,2.99918]
[1734981009981,0.57998877,3335.1,3334.3,2.99912]
[1734981010281,0.57998877,3335.1,3333.5,0.36387583]
[1734981010588,0.55,3335.1,3334.4,2.99896]
[1734981011268,0.55,3335.1,3334.2,2.99921]
[1734981011688,2.9976,3336.0,3334.9,2.99855]
[1734981012176,3.02768877,3335.9,3334.9,2.99855]
[1734981012485,0.60889702,3335.8,3334.9,2.99855]
[1734981012689,0.02998877,3335.7,3334.7,2.99875]
[1734981012861,0.02998877,3335.7,3334.3,0.59478749]
[1734981012862,3.09127018,3335.7,3334.3,0.59478749]
[1734981013057,3.55,3335.5,3334.3,0.59478749]
[1734981013277,0.55,3335.3,3334.5,2.99892]
[1734981014751,0.55,3335.3,3334.3,3.59389749]
[1734981014957,0.55,3335.3,3334.4,2.99903]
[1734981015267,0.66412702,3335.4,3334.6,2.99885]
[1734981015536,0.57998877,3335.3,3334.3,0.59478749]
[1734981015791,3.55,3335.6,3334.3,0.59478749]
[1734981015944,2.99754,3336.1,3335.0,2.99849]
[1734981016143,0.60888102,3336.0,3335.0,2.99849]
[1734981016386,0.02998877,3335.9,3334.5,2.99886]
[1734981016689,6.08896018,3335.9,3334.8,2.99866]
[1734981017000,3.06128141,3335.9,3334.5,2.99889]
[1734981017208,0.55,3335.6,3334.5,2.99889]
[1734981017500,0.02998877,3335.5,3334.5,2.99889]
[1734981017667,0.55,3335.3,3334.3,3.59388749]
[1734981017851,0.55,3335.3,3334.3,0.59478749]
[1734981018249,0.55,3335.3,3334.6,2.99884]
[1734981018904,0.02998877,3335.2,3334.5,2.99889]
[1734981019103,0.55,3335.3,3334.5,2.99889]
[1734981019336,1.23807716,3335.3,3334.5,2.99889]
[1734981019651,1.23807716,3335.3,3334.4,2.99902]
[1734981019846,0.02998877,3335.2,3334.2,2.9992]
[1734981020053,0.55,3335.1,3333.8,2.99958]
[1734981020286,0.55,3335.1,3334.3,2.99912]
[1734981020463,0.42662359,3335.1,3333.7,0.812]
[1734981020663,0.55,3334.7,3334.0,0.59401772]
[1734981020875,0.02998877,3334.6,3333.7,2.9996]
[1734981021077,3.57998877,3334.7,3333.7,2.9996]
[1734981021654,0.55,3334.4,3333.4,2.99993]
[1734981021880,0.55,3334.4,3333.3,0.59908789]
[1734981021881,0.02998877,3334.3,3333.3,0.59908789]
[1734981022081,0.55,3333.9,3332.9,4.2486701]
[1734981022288,0.904941,3333.9,3332.9,4.2486701]
[1734981022473,0.904941,3333.9,3332.9,3.00036]
[1734981022991,0.904941,3333.9,3333.2,3.00011]
[1734981023158,0.55,3334.1,3333.2,3.00011]
[1734981023996,3.02998877,3334.2,3333.5,2.99978]
[1734981024196,0.85665075,3335.6,3332.7,3.8296]
[1734981024197,3.0,3335.0,3333.2,0.58856597]
[1734981024352,0.02998877,3334.9,3334.0,2.99931]
[1734981024557,3.06128141,3335.1,3334.1,2.99925]
[1734981024757,0.60595314,3335.0,3334.1,2.99925]
[1734981025295,0.60595314,3335.0,3333.7,2.99967]
[1734981025607,6.05935141,3335.5,3334.3,2.99905]
[1734981025767,6.05935141,3335.5,3333.6,0.7651]
[1734981025768,3.06128141,3335.5,3333.6,0.7651]
[1734981025968,2.9979,3335.7,3334.6,2.99884]
[1734981026172,3.02788877,3335.7,3334.6,2.99884]
[1734981026468,3.415,3336.5,3334.1,2.99922]
[1734981026469,3.10302803,3336.7,3334.7,0.8127]
[1734981026673,3.06128141,3337.1,3335.0,3.831]
[1734981026897,0.02998877,3337.0,3336.0,2.99753]
[1734981027095,0.02998877,3337.0,3336.1,2.99748]
[1734981027279,0.02998877,3337.0,3336.2,2.9974]
[1734981027479,0.34329045,3337.0,3336.2,2.9974]
[1734981028113,0.02998877,3337.0,3335.9,0.7677]
[1734981028295,0.55,3337.4,3335.9,0.7677]
[1734981028511,0.55,3337.4,3336.2,2.99738]
[1734981028742,6.57634877,3337.4,3336.2,2.99738]
[1734981028897,6.57634877,3337.4,3335.9,0.7677]
[1734981028898,2.9966,3337.2,3335.9,2.9976]
[1734981029234,0.55,3336.9,3335.9,2.9976]
[1734981029442,0.02998877,3336.8,3335.9,2.9976]
[1734981029590,0.02998877,3336.8,3335.1,2.99841]
[1734981029781,0.02998877,3336.8,3335.8,2.99773]
[1734981029981,0.55,3336.6,3335.6,2.99795]
[1734981030206,0.55,3336.4,3335.6,2.99795]
[1734981030487,0.02998877,3336.3,3335.6,2.99795]
[1734981030699,0.57998877,3336.4,3335.6,2.99795]
[1734981032218,0.57998877,3336.4,3335.3,0.61524314]
[1734981032384,0.57998877,3336.4,3335.7,0.04943655]
[1734981032722,0.57998877,3336.4,3335.8,0.04650791]
[1734981033228,0.57998877,3336.4,3335.6,2.99793]
[1734981033435,0.57998877,3336.4,3335.9,0.04644281]
[1734981033436,0.97345534,3336.4,3335.9,0.04644281]
[1734981033744,0.55,3336.7,3335.7,2.99784]
[1734981033948,0.57998877,3336.6,3336.0,0.0463777]
[1734981034240,0.57998877,3336.6,3335.7,2.99784]
[1734981034241,3.57705877,3336.6,3335.3,0.61524314]
[1734981034436,0.35770588,3336.5,3336.1,0.0463126]
[1734981034637,0.55,3336.4,3335.7,2.99782]
[1734981034937,0.02998877,3336.3,3335.8,0.04650791]
[1734981035434,0.02998877,3336.5,3335.3,0.61524314]
[1734981035635,0.02998877,3336.5,3335.9,0.04644281]
[1734981035946,0.24,3337.0,3336.0,0.0463777]
[1734981035947,0.55,3336.6,3336.0,0.0463777]
[1734981036245,2.99741,3336.3,3336.0,0.0463777]
[1734981036440,0.02998877,3336.5,3335.3,2.99818]
[1734981036441,0.85273988,3336.2,3335.3,2.99818]
[1734981036600,0.24,3337.0,3335.0,0.7544]
[1734981036803,0.24,3337.0,3335.5,0.7646]
[1734981037122,0.24,3337.0,3336.7,2.99696]
[1734981037522,0.24,3337.0,3336.8,0.04422023]
[1734981037925,0.24,3337.0,3336.5,2.99712]
[1734981038118,0.24,3337.0,3336.9,0.04415516]
[1734981038323,0.24,3337.0,3336.9,2.99679]
[1734981038534,0.24,3337.0,3336.9,3.04094516]
[1734981042410,0.1712636,3338.1,3336.9,3.04094516]
[1734981042411,0.1712636,3338.1,3336.9,0.84355516]
[1734981042711,0.1712636,3338.1,3337.9,2.99581]
[1734981042913,0.1712636,3338.1,3338.0,3.03846167]
[1734981043147,0.1712636,3338.1,3338.0,4.14620784]
[1734981044040,0.1712636,3338.1,3338.0,0.34650784]
[1734981044209,0.1712636,3338.1,3338.0,0.04266167]
[1734981044419,0.1712636,3338.1,3338.0,3.03846167]
[1734981044619,0.1712636,3338.1,3338.0,0.04266167]
[1734981044952,0.1712636,3338.1,3338.0,0.04264662]
[1734981045153,0.1712636,3338.1,3337.5,0.59468341]
[1734981045353,0.1712636,3338.1,3336.7,0.8039]
[1734981045354,0.55,3337.6,3336.7,0.8039]
[1734981045546,0.02998877,3337.5,3336.7,3.41937872]
[1734981045857,0.55,3337.9,3337.0,2.99668]
[1734981046020,0.55,3338.0,3337.0,2.99668]
[1734981046216,3.02998877,3337.9,3337.0,2.99668]
[1734981046417,0.55,3337.8,3337.0,2.99668]
[1734981046613,0.55,3338.0,3337.0,2.99666]
[1734981046854,1.52169036,3338.0,3337.0,2.99661]
[1734981047052,1.52169036,3338.0,3337.1,2.99656]
[1734981047632,1.52169036,3338.0,3337.2,2.9965]
[1734981047827,0.55,3338.0,3337.2,2.9965]
[1734981048043,0.1712636,3338.1,3337.3,2.99641]
[1734981048260,0.1712636,3338.1,3337.0,0.7781]
[1734981048449,0.1712636,3338.1,3337.4,2.99625]
[1734981049260,0.57998877,3338.0,3336.6,0.8026]
[1734981049476,2.99598,3337.9,3336.9,2.99677]
[1734981049670,0.55,3337.8,3336.9,2.99677]
[1734981049974,0.02998877,3337.7,3336.4,0.60477704]
[1734981050132,3.54636,3337.4,3336.4,0.60477704]
[1734981050337,3.54636,3337.4,3336.4,3.60199704]
[1734981050338,0.02998877,3337.3,3336.4,3.60199704]
[1734981050646,0.90763488,3337.2,3336.4,0.60477704]
[1734981051196,0.1712636,3338.1,3336.0,0.8026]
[1734981051197,0.55,3338.0,3336.0,0.8026]
[1734981051398,2.99601,3337.8,3336.5,0.03982041]
[1734981051682,2.99601,3337.8,3336.2,2.99736]
[1734981051683,3.55,3337.7,3336.7,2.99696]
[1734981052037,0.55,3337.7,3336.9,2.99679]
[1734981052367,0.55,3337.7,3337.0,0.03949505]
[1734981052569,3.54583,3338.0,3337.0,0.03949505]
[1734981052768,0.55,3337.8,3337.0,0.03949505]
[1734981052976,0.02998877,3337.7,3337.0,0.03949505]
[1734981053137,3.02998877,3337.9,3337.0,0.03949505]
[1734981053873,0.02998877,3337.9,3337.0,0.03949505]
[1734981054072,3.0,3337.5,3337.0,0.03949505]
[1734981054274,0.55,3337.3,3336.3,0.58714702]
[1734981054439,0.55,3337.3,3337.1,0.03942999]
[1734981054639,0.55,3337.3,3336.5,2.99707]
[1734981054839,0.55,3337.3,3336.3,3.58439702]
[1734981055044,3.1712636,3338.1,3336.6,0.03975533]
[1734981055286,0.20125237,3338.1,3337.4,2.99629]
[1734981055576,0.1712636,3338.1,3337.5,3.03539979]
[1734981055777,0.20125237,3338.1,3337.5,3.03539979]
[1734981055977,0.20125237,3338.1,3337.5,0.03916979]
[1734981056160,2.99616,3337.6,3336.4,0.8317]
[1734981056335,3.02623877,3337.5,3336.5,0.4416237]
[1734981056536,0.02998877,3337.5,3336.5,2.99706]
[1734981056931,3.55,3337.6,3336.5,2.99706]
[1734981056932,3.57998877,3337.6,3336.5,2.99706]
[1734981057155,3.55,3337.6,3336.5,2.99706]
[1734981057357,3.55,3337.6,3336.6,2.99697]
[1734981057560,0.55,3337.6,3336.6,2.99697]
[1734981057761,0.55,3337.6,3336.6,3.379837]
[1734981057971,6.1670036,3338.1,3337.0,2.99668]
[1734981058271,6.1670036,3338.1,3336.6,0.382867]
[1734981058272,0.55,3338.0,3336.6,0.382867]
[1734981058450,0.02998877,3337.9,3336.4,0.8317]
[1734981058770,0.55,3337.6,3336.5,2.99711]
[1734981058976,0.02998877,3337.5,3336.5,2.99711]
[1734981059172,0.55,3337.4,3336.4,0.8317]
[1734981059472,0.55,3337.4,3336.3,2.99733]
[1734981059644,0.55,3337.4,3336.4,3.73325174]
[1734981060251,3.54641,3337.4,3336.4,3.73325174]
[1734981060582,3.54641,3337.4,3336.2,0.60012736]
[1734981060583,2.99653,3337.2,3336.2,3.59750736]
[1734981060750,2.99662,3337.1,3336.2,0.60012736]
[1734981061076,0.55,3337.2,3336.2,3.59752736]
[1734981061681,2.99637,3337.4,3336.4,2.99716]
[1734981061974,0.55,3337.4,3336.6,2.99705]
[1734981062178,1.259617,3337.4,3336.6,2.99705]
[1734981062378,1.259617,3337.4,3336.4,2.9972]
[1734981062556,1.259617,3337.4,3336.2,0.60012736]
[1734981063278,0.55,3337.2,3336.3,2.99725]
[1734981063444,0.55,3337.2,3336.2,0.60012736]
[1734981063646,0.55,3337.0,3336.2,3.59750736]
[1734981064051,0.55,3337.2,3336.2,3.59750736]
[1734981064252,2.99671,3337.0,3335.7,3.75592]
[1734981064455,0.02998877,3336.9,3335.7,0.7581]
[1734981064652,2.99715,3336.5,3335.5,2.99801]
[1734981064852,2.99715,3336.5,3335.5,3.672821]
[1734981064853,0.02998877,3336.4,3335.5,3.672821]
[1734981065079,3.55,3337.3,3336.0,0.592731]
[1734981065282,3.05474963,3338.2,3337.2,2.99646]
[1734981065453,0.02998877,3338.0,3336.0,6.64507063]
[1734981065672,2.99516,3338.8,3337.6,2.99611]
[1734981065864,0.02998877,3338.5,3336.7,0.7565]
[1734981066180,2.99518,3338.7,3337.7,2.99606]
[1734981066683,2.99526,3338.6,3337.8,0.03664779]
[1734981066981,0.02998877,3338.5,3337.2,2.99649]
[1734981067180,3.02998877,3338.5,3337.9,0.03658277]
[1734981067478,3.0,3338.2,3337.2,2.99646]
[1734981067777,0.78794696,3338.1,3337.3,0.03697299]
[1734981067983,0.78794696,3338.1,3336.8,0.98154656]
[1734981067984,0.1712636,3338.1,3336.8,0.60318566]
[1734981068144,0.1712636,3338.1,3337.2,2.99643]
[1734981068565,0.1712636,3338.1,3337.3,0.03697299]
[1734981069285,0.1712636,3338.1,3337.4,2.9963]
[1734981069485,0.1712636,3338.1,3337.3,0.03697299]
[1734981069683,0.1712636,3338.1,3337.5,0.0368429]
[1734981069880,2.99589,3337.9,3337.4,0.03690795]
[1734981070055,0.02998877,3337.8,3337.6,0.03677786]
[1734981070264,0.55,3337.6,3337.5,0.0368429]
[1734981070459,0.55,3337.5,3336.6,2.99698]
[1734981070758,0.55,3337.7,3336.7,0.03709788]
[1734981070960,2.99625,3337.5,3336.7,0.03709788]
[1734981071146,0.654188,3337.7,3336.4,3.59223281]
[1734981071147,3.02632877,3337.4,3336.4,3.59223281]
[1734981071353,0.654188,3337.7,3336.8,0.03710293]
[1734981071549,0.55,3337.6,3336.6,2.99698]
[1734981071818,0.55,3337.6,3336.9,0.03703786]
[1734981071952,0.55,3337.6,3336.6,2.99698]
[1734981072154,3.1712636,3338.1,3337.0,0.0369728]
[1734981072353,0.1712636,3338.1,3337.1,0.7518]
[1734981072556,0.1712636,3338.1,3337.4,2.99631]
[1734981072771,0.1712636,3338.1,3337.2,3.03342785]
[1734981072972,0.1712636,3338.1,3337.5,0.03674271]
[1734981073173,0.1712636,3338.1,3337.2,2.99649]
[1734981073513,0.20125237,3338.1,3337.6,0.03667767]
[1734981073653,0.20125237,3338.1,3337.2,2.99649]
[1734981073654,0.1712636,3338.1,3337.2,2.99649]
[1734981073859,3.19697237,3338.1,3337.7,0.03661263]
[1734981074059,3.54583,3338.0,3337.0,2.99667]
[1734981074255,3.54583,3338.0,3337.8,0.0365476]
[1734981074256,0.02998877,3337.9,3337.8,0.0365476]
[1734981074468,0.55,3338.0,3336.7,0.8051]
[1734981074677,0.1712636,3338.1,3336.7,0.8051]
[1734981074915,0.1712636,3338.1,3337.0,2.9967]
[1734981075129,0.1712636,3338.1,3338.0,2.9958]
[1734981075459,0.1712636,3338.1,3338.0,3.03221755]
[1734981075956,0.1712636,3338.1,3338.0,3.71171131]
[1734981076389,3.10302803,3339.8,3338.0,0.71591131]
[1734981076390,2.99439,3339.6,3338.0,0.71591131]
[1734981076590,2.99439,3339.6,3338.6,2.99524]
[1734981076792,3.10302803,3339.8,3338.1,0.03635253]
[1734981076992,2.99437,3339.6,3338.6,2.99526]
[1734981077194,0.36036434,3339.5,3338.6,2.99526]
[1734981077395,0.36036434,3339.5,3338.7,0.03541159]
[1734981077553,3.57461877,3339.4,3338.0,0.67949376]
[1734981077758,0.55,3339.1,3338.1,0.03580163]
[1734981077959,0.02998877,3339.0,3338.1,0.03580163]
[1734981078260,0.55,3339.1,3338.1,0.03580163]
[1734981078460,3.55,3339.3,3338.3,2.99551]
[1734981078696,2.99427,3339.8,3338.4,0.02995332]
[1734981078896,0.60490196,3339.7,3338.4,0.03560659]
[1734981079121,3.59918196,3339.7,3338.4,0.02995033]
[1734981079298,0.63489073,3339.7,3338.5,0.03554159]
[1734981079505,2.99452,3339.5,3338.5,0.03554159]
[1734981079712,0.02998877,3339.5,3337.8,0.7667]
[1734981079933,0.60490196,3339.7,3338.6,0.03547658]
[1734981080125,0.55,3339.5,3338.5,2.99535]
[1734981080445,0.55,3339.5,3338.6,0.03487568]
[1734981080580,0.55,3339.5,3338.5,2.99529]
[1734981080787,0.55,3339.5,3338.7,0.03481069]
[1734981080788,0.57998877,3339.5,3338.7,0.03481069]
[1734981081030,2.9948,3339.2,3338.1,2.99569]
[1734981081207,2.9948,3339.2,3338.8,0.03469564]
[1734981081208,1.17946877,3339.1,3338.8,0.03469564]
[1734981081408,1.17946877,3339.1,3338.1,2.99569]
[1734981081409,4.17432877,3339.1,3338.1,2.99569]
[1734981081716,4.14434,3339.1,3338.9,0.03463065]
[1734981081924,0.02998877,3339.0,3337.8,0.7667]
[1734981082122,0.55,3339.0,3338.0,2.99579]
[1734981082449,0.55,3339.0,3338.1,0.03522075]
[1734981082450,0.55,3338.8,3338.1,0.03522075]
[1734981082919,0.55,3338.8,3338.1,3.03092075]
[1734981083120,0.19983588,3338.9,3338.1,3.03092075]
[1734981083329,0.19983588,3338.9,3338.1,0.03522075]
[1734981083487,3.05474963,3338.7,3338.1,0.03522075]
[1734981083689,2.99588,3338.0,3337.4,1.2483101]
[1734981083922,0.02998877,3337.9,3337.4,1.2483101]
[1734981084289,3.05474963,3338.3,3337.5,0.03551741]
[1734981084517,2.99573,3338.1,3337.5,0.03551741]
[1734981084716,0.60804684,3338.1,3337.5,0.03551741]
[1734981085150,2.99582,3338.0,3337.5,0.03551741]
[1734981085328,3.02580877,3338.0,3337.0,0.8012]
[1734981085730,3.05474963,3337.8,3337.1,0.03579619]
[1734981085951,0.57998877,3337.7,3337.1,0.03579619]
[1734981086152,2.99643,3337.3,3336.4,1.2483101]
[1734981086354,3.54643,3337.3,3337.2,0.03572649]
[1734981086561,3.5466,3337.2,3336.4,1.2483101]
[1734981086857,0.55,3337.3,3336.4,1.2483101]
[1734981087021,2.99672,3337.0,3336.4,1.2483101]
[1734981087221,2.9967,3337.1,3336.4,1.2483101]
[1734981087437,2.99676,3337.0,3336.0,2.99758]
[1734981087650,0.96014496,3337.1,3335.6,2.99791]
[1734981087834,3.95679496,3337.1,3336.0,2.99756]
[1734981088236,0.02998877,3337.0,3336.0,2.99756]
[1734981089234,0.02998877,3337.0,3335.3,1.2483101]
[1734981089235,0.55,3336.9,3335.7,2.9978]
[1734981089546,3.02692877,3336.8,3335.8,1.2787211]
[1734981089744,0.02998877,3336.8,3335.8,1.2787211]
[1734981089950,0.02998877,3336.8,3335.6,0.58989675]
[1734981089951,2.99715,3336.5,3335.6,0.58989675]
[1734981090123,0.02998877,3336.4,3335.5,0.674811]
[1734981090324,0.02998877,3336.4,3335.5,3.672811]
[1734981092265,6.05190963,3336.5,3335.5,3.672811]
[1734981092745,3.05474963,3336.5,3335.6,2.99795]
[1734981093129,3.0847384,3336.5,3335.5,0.674811]
[1734981093329,3.05474963,3336.5,3335.5,0.674811]
[1734981093563,3.0847384,3336.5,3335.5,0.674811]
[1734981093785,3.05474963,3336.5,3335.6,3.50088139]
[1734981094264,3.0847384,3336.5,3335.4,4.35460293]
[1734981094466,6.0819184,3336.5,3335.4,4.35460293]
[1734981094667,6.05192963,3336.5,3335.4,4.35460293]
[1734981094972,6.05192963,3336.5,3335.5,2.998]
[1734981095462,3.05474963,3336.5,3335.7,2.99784]
[1734981096176,3.46062998,3336.5,3335.5,2.99802]
[1734981096526,3.49061875,3336.5,3335.8,0.03385162]
[1734981096888,0.43586912,3336.5,3335.5,2.99802]
[1734981097083,0.02998877,3336.5,3335.9,0.03378651]
[1734981097368,6.05180963,3336.6,3335.5,2.99802]
[1734981097543,6.05180963,3336.6,3336.0,0.03372141]
[1734981097747,6.05180963,3336.6,3335.5,2.99802]
[1734981097958,0.02998877,3336.5,3336.1,0.03365631]
[1734981098254,3.63531861,3336.5,3335.5,2.99802]
[1734981098468,3.63531861,3336.5,3336.2,0.03359122]
[1734981098636,3.63531861,3336.5,3335.4,1.35649293]
[1734981098838,6.05217963,3336.2,3335.4,0.58749293]
[1734981099038,0.60521796,3336.1,3335.4,0.58749293]
[1734981099249,3.60274796,3336.1,3335.4,0.58749293]
[1734981099447,3.63273673,3336.1,3335.1,2.99837]
[1734981099882,3.63273673,3336.1,3334.2,1.2523543]
[1734981099883,6.05253963,3335.8,3334.8,2.99865]
[1734981100179,6.05253963,3335.8,3334.3,2.99906]
[1734981100180,3.02786877,3335.7,3334.6,2.99883]
[1734981100379,3.05474963,3335.4,3334.4,2.99896]
[1734981100548,3.05474963,3335.4,3334.1,0.7801]
[1734981100748,3.05474963,3335.4,3334.5,2.99889]
[1734981100965,3.05474963,3335.4,3334.9,2.99858]
[1734981101165,3.05474963,3335.8,3335.0,2.99846]
[1734981101964,0.60521796,3336.1,3335.3,2.99815]
[1734981102163,3.0,3336.1,3335.0,0.377856]
[1734981102843,6.02756877,3336.1,3335.0,3.376346]
[1734981103043,3.05474963,3335.8,3334.5,0.797]
[1734981103592,3.0847384,3335.8,3334.8,2.9986]
[1734981104178,3.05474963,3335.8,3334.6,0.62672386]
[1734981104385,3.05474963,3335.8,3334.7,2.99872]
[1734981104546,3.05474963,3335.8,3334.9,2.99851]
[1734981104748,3.66322347,3335.8,3334.9,2.99852]
[1734981105475,3.57998877,3335.7,3333.8,0.7577]
[1734981105662,6.05295963,3335.4,3334.3,2.99906]
[1734981105989,0.63528473,3335.3,3334.3,2.99906]
[1734981107062,3.63528473,3335.3,3334.3,2.99906]
[1734981107261,6.63351473,3335.3,3334.3,2.99906]
[1734981107472,6.60352596,3335.3,3334.3,2.99906]
[1734981108091,6.60352596,3335.3,3334.4,2.99903]
[1734981108275,0.96582756,3335.2,3334.5,2.99886]
[1734981108473,0.55,3335.7,3334.2,0.59760967]
[1734981108644,3.02998877,3335.7,3334.2,0.59760967]
[1734981108850,2.99798,3335.6,3334.5,2.99886]
[1734981109488,3.0,3335.7,3334.2,0.59760967]
[1734981109489,0.02998877,3335.5,3334.2,0.59760967]
[1734981109687,2.99816,3335.4,3334.3,2.99911]
[1734981109953,2.99839,3335.2,3334.2,3.59679967]
[1734981110191,0.02998877,3335.1,3334.2,3.59679967]
[1734981111352,3.02846877,3335.1,3334.2,0.59760967]
[1734981111664,3.02846877,3335.1,3334.3,0.04556282]
[1734981111868,3.6970721,3335.1,3334.3,0.04556282]
[1734981113194,0.6985921,3335.1,3334.3,0.04556282]
[1734981113693,2.99877,3334.7,3334.3,0.04556282]
[1734981113873,2.99877,3334.7,3333.7,2.99964]
[1734981114079,2.99877,3334.7,3334.4,0.0410389]
[1734981114299,0.02998877,3334.9,3333.4,0.7626]
[1734981114300,3.54895,3334.5,3333.5,2.99979]
[1734981114474,0.02998877,3334.4,3333.5,2.99979]
[1734981114673,0.02998877,3334.4,3333.6,0.04182104]
[1734981115396,3.05474963,3335.6,3333.9,0.7575]
[1734981115697,6.05215963,3336.3,3334.0,0.02998881]
[1734981115878,3.63264473,3336.2,3335.1,2.99836]
[1734981116282,3.63264473,3336.2,3335.2,0.04025713]
[1734981117570,3.0,3336.1,3335.2,0.04025713]
[1734981117971,3.02998877,3336.1,3335.2,0.04025713]
[1734981119360,2.99744,3336.2,3335.3,2.99821]
[1734981119575,2.99744,3336.2,3335.3,3.30205671]
[1734981119766,0.55,3336.2,3335.4,0.03959768]
[1734981120189,3.05474963,3336.3,3335.4,3.03769768]
[1734981120190,0.02998877,3336.3,3335.4,3.03769768]
[1734981120498,3.05474963,3336.3,3335.4,0.03959768]
[1734981120699,3.05474963,3336.3,3335.0,2.99845]
[1734981121007,3.05474963,3336.3,3335.5,0.0395]
[1734981121297,3.05474963,3337.1,3335.6,0.82088035]
[1734981121503,0.02998877,3337.0,3335.7,2.99787]
[1734981121686,0.02998877,3337.0,3336.0,2.99759]
[1734981121877,0.60813684,3336.9,3336.0,2.99759]
[1734981122400,3.05474963,3337.5,3335.7,0.02997425]
[1734981122561,3.05474963,3337.5,3336.2,2.99739]
[1734981123200,2.99643,3337.3,3335.6,0.7771]
[1734981123400,3.05474963,3337.5,3336.3,2.9973]
[1734981123606,3.05474963,3337.5,3335.7,0.02997273]
[1734981123899,3.05474963,3337.9,3336.9,2.99677]
[1734981124107,3.05474963,3337.9,3336.3,0.7545]
[1734981124108,3.05474963,3338.3,3336.4,0.02996695]
[1734981124402,2.99607,3337.7,3336.6,2.99704]
[1734981124634,3.05474963,3337.5,3336.4,0.59973132]
[1734981124806,2.99576,3338.1,3335.8,0.68051027]
[1734981124807,2.9967,3337.0,3335.9,0.7989]
[1734981125005,3.05474963,3337.1,3336.0,0.02997477]
[1734981125302,3.36696329,3338.3,3335.9,0.7989]
[1734981125303,3.05474963,3337.5,3336.5,2.99707]
[1734981125604,3.05474963,3337.9,3335.9,0.7989]
[1734981125805,3.05474963,3337.9,3336.9,2.99677]
[1734981126005,6.05064963,3337.9,3336.7,3.79586]
[1734981126308,0.60506496,3337.8,3336.8,2.99686]
[1734981126607,2.99608,3337.7,3336.7,0.7989]
[1734981126770,0.55,3337.7,3336.7,0.7989]
[1734981126967,0.55,3337.7,3335.4,6.05286963]
[1734981126968,2.99647,3337.3,3335.6,2.99787]
[1734981127166,3.05474963,3337.0,3335.8,0.60526101]
[1734981127367,0.30847384,3336.9,3335.8,0.60526101]
[1734981127573,3.55,3337.5,3336.5,2.99712]
[1734981127867,3.0,3337.5,3336.4,2.99724]
[1734981128189,0.60506496,3337.8,3336.5,2.99707]
[1734981128415,0.60506496,3337.8,3336.8,2.99686]
[1734981129115,0.02998877,3337.7,3336.3,0.7861]
[1734981129288,0.02998877,3337.7,3336.6,2.99705]
[1734981129496,2.99617,3337.6,3336.6,2.99705]
[1734981129725,0.02998877,3337.7,3336.6,2.99705]
[1734981130034,2.99598,3337.8,3336.8,2.99685]
[1734981130231,3.0,3338.1,3336.3,0.81606735]
[1734981130435,0.02998877,3338.0,3337.0,2.99661]